bitfinex/quotes_ETHUSD_20251012
["timestamp","ask_amount","ask_price","bid_price","bid_amount"]
[1760228582002,9.26339,3740.2,3740.1,3.69000016]
[1760228582460,12.37984381,3740.2,3740.1,3.69000016]
[1760228582731,5.03645381,3740.2,3740.1,3.69000016]
[1760228582928,21.94475681,3740.2,3740.1,3.69000016]
[1760228583129,16.82277681,3740.2,3740.1,3.69000016]
[1760228583339,12.77309981,3740.2,3740.1,4.92000016]
[1760228583698,24.10575981,3740.2,3740.1,4.92000016]
[1760228583895,16.380765,3740.2,3740.1,4.92000016]
[1760228584136,15.081265,3740.2,3740.1,4.92000016]
[1760228584936,20.93740881,3740.2,3740.1,6.15000016]
[1760228585508,21.57100881,3740.2,3740.1,6.15000016]
[1760228585837,35.67005381,3740.2,3740.1,6.15000016]
[1760228586046,36.08949836,3740.2,3740.1,6.15000016]
[1760228586202,36.08949836,3740.2,3740.1,7.38000016]
[1760228586537,33.35129836,3740.2,3740.1,7.38000016]
[1760228586739,2.67415429,3739.5,3739.4,0.00172725]
[1760228586913,34.59415429,3739.5,3739.4,0.00172725]
[1760228587117,35.03695429,3739.5,3739.4,0.00172725]
[1760228587302,28.81467929,3739.5,3739.4,0.00172725]
[1760228587506,23.29665434,3739.5,3739.4,0.00172725]
[1760228587708,23.29665434,3739.5,3739.4,1.23172725]
[1760228587909,26.77615834,3739.5,3739.4,1.23172725]
[1760228588609,27.06680821,3739.5,3739.4,1.23172725]
[1760228588830,34.59444037,3739.1,3739.0,0.002]
[1760228589040,34.59444037,3739.1,3739.0,1.232]
[1760228589241,35.03724037,3739.1,3739.0,1.232]
[1760228589645,31.26726037,3739.1,3739.0,1.232]
[1760228589940,35.03724037,3739.1,3739.0,1.232]
[1760228590342,35.03724037,3739.1,3739.0,2.462]
[1760228590648,8.18622837,3739.1,3739.0,2.462]
[1760228590803,17.95804737,3739.1,3739.0,2.462]
[1760228591007,18.40084737,3739.1,3739.0,2.462]
[1760228591749,18.40084737,3739.1,3739.0,3.692]
[1760228592045,35.03724037,3739.1,3739.0,3.692]
[1760228592246,35.45680996,3739.1,3739.0,3.692]
[1760228592819,31.06540296,3739.1,3739.0,3.692]
[1760228593009,18.94497196,3739.1,3739.0,4.922]
[1760228593337,6.11263159,3739.1,3739.0,4.922]
[1760228593675,0.41956959,3739.1,3739.0,4.922]
[1760228593841,3.10874159,3739.1,3739.0,4.922]
[1760228594339,3.10874159,3739.1,3739.0,6.152]
[1760228594340,2.689172,3739.1,3739.0,6.152]
[1760228594542,2.67415567,3739.5,3739.0,6.152]
[1760228594543,1.92,3739.3,3739.0,6.152]
[1760228594747,6.809172,3739.1,3739.0,6.152]
[1760228594957,2.432645,3739.5,3739.0,6.588]
[1760228595108,2.432645,3739.5,3739.0,9.26246571]
[1760228595313,4.003549,3740.1,3739.2,2.67430411]
[1760228595510,1.92,3739.8,3739.0,6.152]
[1760228595711,1.92,3739.4,3739.0,6.152]
[1760228596023,11.348291,3739.2,3739.1,1.23]
[1760228596219,9.161987,3739.2,3739.1,1.23]
[1760228596642,18.89757884,3739.2,3739.1,1.23]
[1760228596948,16.22321,3739.2,3739.1,0.42602946]
[1760228597313,6.633794,3739.2,3739.1,1.65602946]
[1760228597513,4.713371,3739.2,3739.1,1.65602946]
[1760228597720,5.026993,3739.2,3739.1,1.65602946]
[1760228598629,10.54587,3739.2,3739.1,2.88602946]
[1760228599455,10.98867,3739.2,3739.1,2.88602946]
[1760228599627,11.836216,3739.2,3739.1,2.88602946]
[1760228600022,11.836216,3739.2,3739.1,4.11602946]
[1760228600223,14.51058484,3739.2,3739.1,4.11602946]
[1760228600553,4.939,3739.2,3739.1,4.11802946]
[1760228600752,7.788383,3739.2,3739.1,4.11802946]
[1760228601567,0.001,3740.2,3739.1,5.78402946]
[1760228601749,9.149861,3740.1,3739.1,8.45845559]
[1760228601915,1.92,3740.0,3739.1,8.45845559]
[1760228602118,1.92,3739.6,3739.1,5.78402946]
[1760228602420,1.92,3739.2,3739.1,5.34802946]
[1760228602655,19.42182684,3739.2,3739.1,5.34802946]
[1760228602842,19.42182684,3739.2,3739.1,6.57802946]
[1760228603518,22.79535384,3739.2,3739.1,6.57802946]
[1760228604354,16.56744284,3739.2,3739.1,7.80802946]
[1760228604978,8.71636184,3739.2,3739.1,7.80802946]
[1760228605555,22.89325584,3739.2,3739.1,7.80802946]
[1760228605752,22.89325584,3739.2,3739.1,9.03802946]
[1760228606063,0.41952694,3739.4,3739.1,9.03802946]
[1760228606568,1.92,3739.2,3739.1,9.03802946]
[1760228606765,8.027423,3739.2,3739.1,9.03802946]
[1760228606941,17.601482,3739.2,3739.1,9.03802946]
[1760228607140,14.46995384,3739.2,3739.1,10.26802946]
[1760228607982,20.58168184,3739.2,3739.1,10.26802946]
[1760228608180,19.11918184,3739.2,3739.1,10.26802946]
[1760228608400,20.21948184,3739.2,3738.7,0.002]
[1760228608707,32.7077615,3738.7,3738.6,0.002]
[1760228609086,34.3515655,3738.7,3738.6,0.002]
[1760228609846,34.3515655,3738.7,3738.6,1.232]
[1760228610054,11.9245755,3738.7,3738.6,1.232]
[1760228610256,12.3912755,3738.7,3738.6,1.232]
[1760228610450,9.023375,3738.7,3738.6,1.232]
[1760228610661,11.6981015,3738.7,3738.6,1.232]
[1760228610987,12.1648015,3738.7,3738.6,1.232]
[1760228611177,16.7224695,3738.7,3738.6,2.462]
[1760228612054,23.7644405,3738.7,3738.6,2.462]
[1760228612286,22.8575455,3738.7,3738.6,2.462]
[1760228612508,22.3215455,3738.7,3738.6,3.692]
[1760228612915,22.9551455,3738.7,3738.6,3.692]
[1760228613094,35.99032585,3738.7,3738.6,3.692]
[1760228613686,36.40994952,3738.7,3738.6,3.692]
[1760228613983,36.40994952,3738.7,3738.6,4.922]
[1760228615428,35.2284696,3738.5,3738.4,7.38]
[1760228615800,35.6951696,3738.5,3738.4,7.38]
[1760228616680,35.6951696,3738.5,3738.4,8.61]
[1760228617113,5.6951696,3738.5,3738.4,8.61]
[1760228617320,35.6951696,3738.5,3738.4,8.61]
[1760228618087,35.6951696,3738.5,3738.4,9.84]
[1760228619222,35.6951696,3738.5,3738.4,9.842]
[1760228619223,3.234984,3738.5,3738.4,9.842]
[1760228619410,13.9505936,3738.5,3738.4,11.072]
[1760228619616,15.8705936,3738.5,3738.4,11.072]
[1760228620309,20.2033596,3738.5,3738.4,11.072]
[1760228620706,20.8369596,3738.5,3738.4,12.302]
[1760228620925,21.15338645,3738.5,3738.4,12.302]
[1760228621246,36.01159645,3738.5,3738.4,12.302]
[1760228622134,36.01159645,3738.5,3738.4,13.532]
[1760228622645,2.5536,3738.4,3738.0,0.002]
[1760228622844,36.58136652,3738.1,3738.0,0.002]
[1760228623254,37.01216652,3738.1,3738.0,0.002]
[1760228623547,37.01216652,3738.1,3738.0,1.232]
[1760228623778,34.65814578,3737.7,3737.6,0.002]
[1760228623954,36.57814578,3737.7,3737.6,0.002]
[1760228624135,36.57814578,3737.7,3737.4,3.57031167]
[1760228624136,3.30918528,3737.5,3737.4,3.57031167]
[1760228624341,35.57905694,3737.5,3737.4,3.57031167]
[1760228624545,35.97641213,3737.5,3737.4,3.57031167]
[1760228624717,35.97641213,3737.5,3737.4,4.80031167]
[1760228625368,36.07976274,3737.5,3737.4,4.80031167]
[1760228626032,20.74008074,3737.5,3737.4,4.80031167]
[1760228626232,20.74008074,3737.5,3737.4,6.03031167]
[1760228626233,6.07976274,3737.5,3737.4,6.03031167]
[1760228626464,36.07976274,3737.5,3737.4,6.03031167]
[1760228627167,32.83117974,3737.5,3737.4,6.03031167]
[1760228627338,36.07976274,3737.5,3737.4,6.03031167]
[1760228627667,36.07976274,3737.5,3737.4,7.26031167]
[1760228627668,16.01355046,3737.5,3737.4,7.26031167]
[1760228627869,18.68913574,3737.5,3737.4,7.26031167]
[1760228628054,12.41406146,3737.5,3737.4,7.26031167]
[1760228628256,3.84571746,3737.5,3737.4,7.26031167]
[1760228628460,11.812821,3737.7,3737.4,7.26031167]
[1760228628659,8.702161,3737.5,3737.4,7.26031167]
[1760228628854,4.531661,3737.5,3737.4,8.49031167]
[1760228629480,8.76399,3737.5,3737.4,8.49031167]
[1760228629665,7.379911,3737.5,3737.4,8.49031167]
[1760228630174,6.949111,3737.5,3737.4,8.49031167]
[1760228630336,21.35824,3737.5,3737.4,9.72031167]
[1760228630541,20.712774,3737.5,3737.4,9.72031167]
[1760228630761,16.811763,3737.5,3737.4,9.72031167]
[1760228630966,10.263123,3737.5,3737.4,9.72031167]
[1760228631142,9.001204,3737.5,3737.4,9.72031167]
[1760228631473,8.599679,3737.5,3737.4,9.72031167]
[1760228631668,7.964679,3737.5,3737.4,10.95031167]
[1760228632473,1.92,3737.5,3737.4,10.95031167]
[1760228632690,0.85050816,3738.5,3737.4,11.68298438]
[1760228632838,4.778195,3738.4,3737.4,14.35863916]
[1760228633045,1.92,3738.2,3737.5,0.4686]
[1760228633365,2.67473969,3738.7,3737.5,0.4686]
[1760228633366,16.91579,3738.8,3737.6,2.67545578]
[1760228633577,16.91579,3738.8,3737.5,0.4686]
[1760228633578,1.92,3738.5,3737.5,0.4686]
[1760228633745,3.019357,3738.2,3737.6,2.67550791]
[1760228633944,16.703111,3738.5,3737.6,2.67550791]
[1760228634166,1.92,3738.2,3737.6,2.67550791]
[1760228634372,2.67480168,3738.6,3737.6,2.67550791]
[1760228634373,1.92,3737.8,3737.6,3.90550791]
[1760228634677,1.92,3738.3,3737.6,3.90550791]
[1760228634844,2.172937,3738.0,3737.6,5.10326926]
[1760228635049,1.92,3738.3,3737.6,5.10326926]
[1760228635254,1.92,3737.9,3737.6,5.10326926]
[1760228635450,1.92,3738.5,3737.6,5.10326926]
[1760228635683,1.92,3738.6,3737.6,2.42776135]
[1760228635877,2.504844,3738.3,3737.8,2.67530343]
[1760228636074,1.92,3738.5,3737.7,1.74150773]
[1760228636374,9.845639,3737.7,3737.6,2.46]
[1760228636594,4.321331,3737.7,3737.6,2.46]
[1760228636758,2.0536,3737.7,3737.6,2.46]
[1760228636946,1.92,3737.7,3737.6,2.46]
[1760228637479,1.92,3737.7,3737.6,3.69]
[1760228638352,0.41963092,3738.7,3737.6,6.28096084]
[1760228638551,0.001,3738.3,3737.7,0.4686]
[1760228638819,0.001,3738.3,3738.2,0.1736]
[1760228639009,0.001,3738.3,3738.1,2.67510059]
[1760228639010,0.001,3738.3,3738.0,2.67520864]
[1760228639155,0.001,3738.3,3737.7,1.6986]
[1760228639156,2.0536,3738.1,3737.7,1.6986]
[1760228639350,0.001,3738.3,3737.8,1.21969608]
[1760228639556,0.001,3738.3,3738.2,0.1736]
[1760228640083,0.1336,3738.2,3738.0,2.67521816]
[1760228640284,0.1336,3737.9,3737.7,1.23]
[1760228640454,1.92,3737.8,3737.7,1.23]
[1760228640780,0.001,3738.3,3737.7,2.94023117]
[1760228640984,0.001,3738.7,3738.6,2.67479805]
[1760228641181,0.001,3738.7,3738.6,0.4686]
[1760228641459,0.001,3738.7,3738.6,2.67479805]
[1760228641882,0.1336,3738.6,3738.5,2.67486392]
[1760228642053,2.376618,3738.6,3738.5,2.67486392]
[1760228642255,2.376618,3738.6,3738.2,0.1736]
[1760228642495,0.1336,3738.3,3738.0,2.67517075]
[1760228642697,1.92,3738.5,3738.0,0.82907725]
[1760228642894,0.001,3738.7,3738.1,2.67508728]
[1760228643094,0.001,3738.7,3738.3,2.67495558]
[1760228643295,0.001,3738.7,3738.3,0.68203773]
[1760228643464,0.001,3738.7,3738.1,1.4026]
[1760228643465,0.1336,3738.3,3738.2,2.67508426]
[1760228643658,0.001,3738.7,3738.6,2.67479805]
[1760228644056,0.001,3738.7,3738.5,2.67485883]
[1760228644262,0.001,3738.7,3738.1,1.23]
[1760228644461,1.92,3738.4,3738.1,1.23]
[1760228644762,14.514351,3738.2,3738.1,2.46]
[1760228644992,5.9887364,3737.8,3737.7,1.00979166]
[1760228645166,18.89717592,3737.8,3737.7,1.00979166]
[1760228645366,19.85284192,3737.8,3737.7,1.00979166]
[1760228645893,6.95966905,3737.8,3737.7,1.00979166]
[1760228646198,6.95966905,3737.8,3737.7,2.23979166]
[1760228646403,14.24582305,3737.8,3737.7,2.23979166]
[1760228647401,17.24903005,3737.8,3737.7,2.23979166]
[1760228647607,17.24903005,3737.8,3737.7,3.46979166]
[1760228647786,20.40683111,3737.7,3737.6,1.79943733]
[1760228648097,17.68613378,3737.7,3737.6,1.79943733]
[1760228648406,19.26834378,3737.7,3737.6,1.79943733]
[1760228648704,4.201671,3737.7,3737.6,1.79943733]
[1760228649005,6.87711311,3737.7,3737.6,3.02943733]
[1760228649376,4.262988,3737.7,3737.6,3.02943733]
[1760228649577,6.483367,3737.7,3737.6,3.02943733]
[1760228650432,11.639399,3737.7,3737.6,4.25943733]
[1760228650723,9.227468,3737.7,3737.6,4.25943733]
[1760228651127,1.92,3737.7,3737.6,4.25943733]
[1760228651623,4.494095,3737.7,3737.6,4.25943733]
[1760228651834,4.494095,3737.7,3737.6,5.48943733]
[1760228652003,4.82968852,3737.7,3737.6,5.48943733]
[1760228652330,4.36848852,3737.7,3737.6,5.48943733]
[1760228652528,1.92,3737.7,3737.6,5.48943733]
[1760228652694,4.298697,3737.7,3737.6,5.48943733]
[1760228653129,1.92,3737.7,3737.6,6.71943733]
[1760228653310,2.736512,3738.4,3737.6,9.07821223]
[1760228653513,1.95343676,3738.4,3737.6,9.39492678]
[1760228653847,5.426003,3738.3,3737.6,6.71943733]
[1760228654023,2.191104,3738.1,3737.6,6.71943733]
[1760228654228,1.95343676,3738.4,3737.6,6.71943733]
[1760228654387,1.92,3738.2,3737.6,7.94943733]
[1760228654587,1.92,3738.0,3737.6,7.94943733]
[1760228654896,2.038496,3737.8,3737.6,7.94943733]
[1760228655096,1.92,3738.0,3737.6,7.94943733]
[1760228655303,8.121787,3737.7,3737.6,7.94943733]
[1760228655514,10.041787,3737.7,3737.6,7.94943733]
[1760228655696,17.67134,3737.7,3737.6,9.17943733]
[1760228656333,11.463425,3737.7,3737.6,9.17943733]
[1760228656492,8.785356,3737.7,3737.6,9.17943733]
[1760228656691,11.081748,3737.7,3737.6,9.17943733]
[1760228657092,11.081748,3737.7,3737.6,10.40943733]
[1760228657612,5.223529,3737.7,3737.6,10.41143733]
[1760228658128,8.36017111,3737.7,3737.6,10.41143733]
[1760228658534,8.36017111,3737.7,3737.6,11.64143733]
[1760228658736,18.21887211,3737.7,3737.6,11.64143733]
[1760228658903,8.256654,3737.7,3737.6,11.64143733]
[1760228659234,8.717854,3737.7,3737.6,11.64143733]
[1760228659399,7.682959,3737.7,3737.6,11.64143733]
[1760228659831,11.360306,3737.7,3737.6,11.64143733]
[1760228660038,11.360306,3737.7,3737.6,12.87143733]
[1760228660906,14.153924,3737.7,3737.6,12.87143733]
[1760228661132,17.77444931,3737.7,3737.6,7.50725131]
[1760228661297,17.77444931,3737.7,3737.2,0.002]
[1760228661298,32.67572846,3737.3,3737.2,0.002]
[1760228661503,35.50613858,3737.3,3737.2,0.002]
[1760228661712,33.30947166,3737.1,3737.0,12.302]
[1760228661915,36.60402766,3737.1,3737.0,12.2974]
[1760228662233,35.2297581,3736.7,3736.6,3.692]
[1760228662402,34.68777997,3736.4,3734.4,1.23]
[1760228662743,35.27607329,3736.4,3734.4,1.23]
[1760228662913,6.60002897,3736.4,3734.4,1.23]
[1760228663117,36.60002897,3736.4,3734.4,1.23]
[1760228664005,36.60002897,3736.4,3736.3,1.232]
[1760228664205,37.01996454,3736.4,3736.3,1.232]
[1760228665138,2.5536,3736.3,3734.4,1.23]
[1760228665344,0.2196,3735.0,3734.4,1.23]
[1760228665640,19.128451,3735.0,3734.9,6.15]
[1760228665808,13.63823,3735.0,3734.9,6.15]
[1760228666011,21.25398417,3735.0,3734.9,6.15]
[1760228666232,19.80301517,3735.0,3734.9,6.15]
[1760228666945,19.80301517,3735.0,3734.9,7.38]
[1760228667133,27.01455317,3735.0,3734.9,7.38]
[1760228667507,25.64391917,3735.0,3734.9,7.38]
[1760228667739,21.98141917,3735.0,3734.9,7.38]
[1760228668142,35.28437617,3735.0,3734.9,7.38]
[1760228668444,35.28437617,3735.0,3734.9,8.61]
[1760228669747,35.28437617,3735.0,3734.9,9.84]
[1760228669923,35.92752205,3735.0,3734.9,9.84]
[1760228670109,36.56112205,3735.0,3734.9,9.84]
[1760228670310,36.56112205,3735.0,3734.9,7.15777579]
[1760228670511,36.56112205,3735.0,3734.9,4.47497514]
[1760228671050,0.14,3733.9,3733.3,1.23]
[1760228671222,0.14,3733.9,3730.5,0.1726]
[1760228671223,3.507307,3731.3,3730.5,0.1726]
[1760228671422,3.507307,3731.4,3730.7,0.14026]
[1760228671625,20.792219,3732.7,3730.7,0.14026]
[1760228671959,5.543042,3732.3,3731.6,2.67981562]
[1760228672138,1.92,3732.0,3731.2,0.4295]
[1760228672326,1.92,3732.4,3731.2,0.4295]
[1760228672524,1.92,3732.0,3731.4,2.67994513]
[1760228672724,12.597541,3732.3,3731.5,0.31094451]
[1760228672931,1.92,3732.0,3731.5,0.31094451]
[1760228673133,1.92,3732.2,3731.5,0.31094451]
[1760228673448,1.92,3731.8,3731.5,0.31094451]
[1760228673623,1.92,3732.2,3731.2,1.23]
[1760228673826,1.92,3731.7,3731.2,1.23]
[1760228674047,1.92,3731.4,3731.2,1.23]
[1760228674225,35.10093146,3731.3,3731.2,1.23]
[1760228674431,32.7188832,3731.3,3731.2,1.23]
[1760228674751,14.965524,3731.3,3731.2,1.23]
[1760228674953,4.024942,3731.3,3731.2,2.46]
[1760228675112,4.024942,3731.3,3731.2,2.706]
[1760228675317,4.482644,3731.3,3731.2,2.706]
[1760228675730,4.482644,3731.3,3731.2,2.46]
[1760228676372,10.89922338,3731.3,3731.2,2.46]
[1760228676520,10.00289,3731.3,3731.2,3.69]
[1760228676921,12.68292108,3731.3,3731.2,3.69]
[1760228677223,13.358241,3731.3,3731.2,3.69]
[1760228677423,14.38263503,3731.3,3731.2,3.69]
[1760228677629,13.92007803,3731.3,3731.2,3.69]
[1760228677832,13.45188403,3731.3,3731.2,3.69]
[1760228678154,13.45188403,3731.3,3731.2,4.92]
[1760228678350,18.32374303,3731.3,3731.2,4.92]
[1760228678655,2.3874,3731.3,3731.2,4.92]
[1760228678815,3.950166,3731.3,3731.2,4.92]
[1760228679020,4.417566,3731.3,3731.2,4.92]
[1760228679315,6.076504,3731.3,3731.2,4.92]
[1760228679518,6.076504,3731.3,3731.2,6.15]
[1760228679846,8.75653508,3731.3,3731.2,6.15]
[1760228680262,36.37871196,3731.3,3731.2,6.15]
[1760228680464,36.67065862,3731.3,3731.2,6.15]
[1760228680979,12.67166686,3731.3,3731.2,4.69510763]
[1760228681271,15.02021474,3731.3,3731.2,4.69510763]
[1760228681470,4.60010291,3731.2,3731.1,6e-07]
[1760228681677,24.46200219,3731.2,3731.1,6e-07]
[1760228681839,20.660099,3731.2,3731.1,6e-07]
[1760228682039,2.478737,3731.2,3731.1,6e-07]
[1760228682280,2.478737,3731.2,3731.1,1.2300006]
[1760228682484,0.03349949,3731.4,3731.1,1.2300006]
[1760228682781,13.376441,3731.9,3731.1,1.2300006]
[1760228682980,1.92,3731.6,3731.1,1.2300006]
[1760228683186,5.912665,3731.3,3731.1,1.2300006]
[1760228683481,6.046209,3731.2,3731.1,1.2300006]
[1760228683684,4.583709,3731.2,3731.1,2.4600006]
[1760228683982,0.4512,3732.3,3731.1,2.70600066]
[1760228684152,9.50215831,3732.2,3731.2,2.68010291]
[1760228684353,9.163048,3732.4,3731.1,3.17540066]
[1760228684552,4.44674,3732.4,3731.2,0.31754007]
[1760228684757,4.952047,3732.7,3731.4,2.67995926]
[1760228685083,1.92,3732.5,3732.1,2.6794003]
[1760228685244,0.42029158,3732.7,3732.2,2.67932839]
[1760228685581,2.836593,3733.3,3732.6,2.67905039]
[1760228685779,0.42022807,3733.2,3732.6,0.58276916]
[1760228685977,1.38789487,3734.2,3733.2,2.67860871]
[1760228686139,1.31933472,3734.0,3732.8,0.4694]
[1760228686340,1.38789487,3734.2,3733.2,2.67866709]
[1760228686564,10.416881,3733.9,3733.3,2.67858269]
[1760228686736,1.92,3733.6,3733.3,2.67858269]
[1760228686947,3.23933472,3734.0,3733.3,2.67858269]
[1760228687162,1.35108453,3733.8,3733.3,2.67858269]
[1760228687362,1.92,3733.5,3733.2,2.67866361]
[1760228687577,3.4045,3733.6,3733.1,2.67871376]
[1760228687777,1.92,3733.5,3733.2,2.67865719]
[1760228687948,1.30724509,3733.7,3733.3,2.67853421]
[1760228688151,1.38789487,3734.2,3733.4,2.67850992]
[1760228688391,0.42018685,3734.3,3733.7,2.67829571]
[1760228688674,3.966933,3734.6,3733.8,2.67819281]
[1760228688877,10.639295,3734.7,3733.7,0.4694]
[1760228689069,30.0,3734.9,3734.0,2.67808975]
[1760228689383,1.92,3734.4,3733.7,1.6994]
[1760228689581,32.89003664,3733.8,3733.7,1.23]
[1760228689884,37.24372117,3733.8,3733.7,1.6e-07]
[1760228690082,34.59888237,3732.9,3732.1,1.23]
[1760228690283,36.20210991,3732.9,3732.8,1.6e-07]
[1760228690584,7.08165381,3732.2,3732.1,1.23]
[1760228690888,9.00165381,3732.2,3732.1,1.23]
[1760228691252,9.45065381,3732.2,3732.1,1.23]
[1760228691591,16.52264281,3732.2,3732.1,1.23]
[1760228692088,13.81639781,3732.2,3732.1,1.23]
[1760228692293,9.688013,3732.2,3732.1,2.46]
[1760228692587,1.92,3732.2,3732.1,2.46]
[1760228692791,1.92,3732.2,3732.1,2.706]
[1760228693162,1.92,3732.2,3732.1,2.46]
[1760228693492,11.82170181,3732.2,3732.1,2.46]
[1760228693665,18.03320781,3732.2,3732.1,3.69]
[1760228694091,17.24492281,3732.2,3732.1,3.69]
[1760228694254,1.92,3732.2,3732.1,3.69]
[1760228694452,1.92,3732.2,3732.1,4.059]
[1760228694672,1.92,3732.2,3732.1,4.4998]
[1760228695181,1.92,3732.2,3732.1,7.9704566]
[1760228695369,1.92,3732.2,3732.1,8.6180566]
[1760228695767,1.92,3732.2,3732.1,4.922]
[1760228696411,4.24754,3732.2,3732.1,4.922]
[1760228696707,1.92,3732.2,3732.1,6.152]
[1760228697098,3.98754,3732.2,3732.1,6.152]
[1760228697483,1.92,3732.2,3732.1,6.152]
[1760228697682,14.749856,3732.2,3732.1,6.152]
[1760228697890,5.34815,3732.2,3732.1,7.382]
[1760228698479,1.92,3732.2,3732.1,8.1202]
[1760228698676,2.36324,3732.7,3732.1,8.561]
[1760228699208,2.67909878,3732.6,3732.1,7.382]
[1760228699387,5.757604,3732.2,3732.1,8.612]
[1760228699579,1.92,3732.2,3732.1,8.612]
[1760228700231,16.236943,3732.2,3732.1,8.612]
[1760228700431,15.669086,3732.2,3732.1,8.612]
[1760228700603,10.515503,3732.2,3732.1,8.612]
[1760228700799,7.862545,3732.2,3732.1,9.842]
[1760228701137,4.17022,3732.2,3732.1,9.842]
[1760228701315,1.92,3732.2,3732.1,11.4738]
[1760228701707,1.92,3732.2,3732.1,10.8262]
[1760228701898,1.92,3732.2,3732.1,9.842]
[1760228702102,7.422923,3732.2,3732.1,11.072]
[1760228702791,1.92,3732.2,3732.1,11.5128]
[1760228703332,1.92,3732.2,3732.1,11.7196]
[1760228703529,1.92,3732.2,3732.1,12.9496]
[1760228703830,0.001,3732.8,3732.2,2.67938481]
[1760228704034,0.001,3732.8,3732.2,3.12016318]
[1760228704337,0.001,3732.8,3732.3,0.4408]
[1760228704540,0.001,3732.8,3732.7,2.6790259]
[1760228704900,0.001,3732.8,3732.7,4.3498259]
[1760228705101,0.001,3732.8,3732.7,5.05272342]
[1760228706343,0.001,3732.8,3732.7,2.9008]
[1760228706701,0.001,3732.8,3732.7,5.5798259]
[1760228706900,0.001,3732.8,3732.7,6.2134259]
[1760228707410,9.677346,3734.6,3732.8,3.31255413]
[1760228707595,0.42009421,3734.7,3732.9,0.4408]
[1760228707797,8.99548,3734.6,3733.0,1.04668]
[1760228708034,0.33148319,3735.4,3733.0,1.04668]
[1760228708035,2.841619,3735.2,3733.7,2.67829411]
[1760228708216,1.92,3734.9,3733.8,0.4408]
[1760228708420,1.92,3734.5,3733.8,0.4408]
[1760228708730,1.92,3735.0,3733.8,0.4408]
[1760228708933,1.92,3734.6,3733.9,0.31191549]
[1760228709104,1.92,3734.4,3733.9,0.31191549]
[1760228709436,1.92,3734.4,3733.8,1.6708]
[1760228709622,1.92,3734.2,3733.8,1.23]
[1760228709814,1.92,3734.0,3733.8,1.23]
[1760228709999,12.154018,3733.9,3733.8,1.23]
[1760228710210,11.403231,3733.9,3733.8,1.23]
[1760228710415,11.403231,3733.9,3733.8,2.46]
[1760228710844,11.086783,3733.9,3733.8,2.46]
[1760228711156,11.752483,3733.9,3733.8,2.46]
[1760228711379,12.72211053,3733.9,3733.8,2.46]
[1760228711857,33.55532753,3733.9,3733.8,3.69]
[1760228713445,33.55532753,3733.9,3733.8,2.8]
[1760228713840,1.92,3733.8,3732.7,3.69]
[1760228714044,13.197274,3733.4,3732.7,3.69]
[1760228714250,1.92,3733.1,3732.7,3.69]
[1760228714560,14.68974029,3732.8,3732.7,1.00618967]
[1760228714876,36.35088729,3732.8,3732.7,1.5e-07]
[1760228715036,35.721235,3732.8,3732.7,1.5e-07]
[1760228715356,20.65231181,3732.2,3732.1,12.302]
[1760228715654,21.09691181,3732.2,3732.1,12.302]
[1760228715857,18.07728781,3732.2,3732.1,12.302]
[1760228716155,15.60451881,3732.2,3732.1,13.532]
[1760228716319,16.04911881,3732.2,3732.1,13.532]
[1760228716861,28.71832481,3732.2,3732.1,13.532]
[1760228717159,23.41549681,3732.2,3732.1,13.532]
[1760228717365,23.41549681,3732.2,3732.1,14.751794]
[1760228717569,23.41549681,3732.2,3731.7,0.002]
[1760228717570,2.6872,3732.1,3731.7,0.002]
[1760228717741,32.774,3731.8,3731.7,0.002]
[1760228717946,33.54529,3731.8,3731.7,0.002]
[1760228718169,33.98989,3731.8,3731.7,0.002]
[1760228718357,1.92,3731.5,3731.3,0.002]
[1760228718557,35.4569428,3731.4,3731.3,0.002]
[1760228718756,35.86804331,3731.4,3731.3,1.232]
[1760228718973,26.62814641,3731.4,3731.3,1.232]
[1760228719165,27.05158964,3731.4,3731.3,1.232]
[1760228719670,21.20213164,3731.4,3731.3,1.232]
[1760228719884,18.10054295,3731.4,3731.3,1.232]
[1760228720045,13.275532,3732.1,3731.3,1.7242]
[1760228720247,1.92,3731.8,3731.3,2.9542]
[1760228720446,11.286359,3731.4,3731.3,2.462]
[1760228720646,7.437119,3731.4,3731.3,2.462]
[1760228720973,4.59995926,3731.4,3731.3,2.462]
[1760228721277,11.03404126,3731.4,3731.3,2.462]
[1760228721777,4.59995926,3731.4,3731.3,2.462]
[1760228722081,11.61880326,3731.4,3731.3,3.692]
[1760228722380,8.938844,3731.4,3731.3,3.692]
[1760228722532,7.504604,3731.4,3731.3,3.692]
[1760228722939,6.674989,3731.4,3731.3,3.692]
[1760228723137,6.039989,3731.4,3731.3,3.692]
[1760228723368,6.039989,3731.4,3731.3,4.922]
[1760228723571,1.92,3731.4,3731.3,5.7832]
[1760228723774,0.37112415,3732.1,3731.3,5.7832]
[1760228723775,0.37112415,3732.1,3731.3,6.231]
[1760228724077,1.92,3732.2,3731.3,6.231]
[1760228724376,1.92,3731.9,3731.3,4.922]
[1760228724561,1.92,3731.7,3731.3,4.922]
[1760228724760,7.801516,3731.4,3731.3,6.152]
[1760228725077,10.48147526,3731.4,3731.3,6.152]
[1760228725808,16.66982626,3731.4,3731.3,6.152]
[1760228726153,17.10862626,3731.4,3731.3,7.382]
[1760228726593,17.50698616,3731.4,3731.3,7.382]
[1760228726789,35.80824331,3731.4,3731.3,7.382]
[1760228727354,35.80824331,3731.4,3731.3,8.6028146]
[1760228728480,20.66099841,3731.4,3731.3,8.6028146]
[1760228728865,34.97108341,3731.4,3731.3,9.8328146]
[1760228729167,35.40988341,3731.4,3731.3,9.8328146]
[1760228729378,35.80824331,3731.4,3731.3,9.8328146]
[1760228730087,11.19178541,3731.4,3731.3,11.0628146]